bitfinex-derivatives/quotes_BTCF0:USTF0_20260113
["timestamp","ask_amount","ask_price","bid_price","bid_amount"]
[1768317028434,0.010833,92387.0,92378.0,0.004]
[1768317028734,0.09123081,92389.0,92373.0,0.10289284]
[1768317029134,0.09823081,92389.0,92377.0,0.004]
[1768317029328,0.09823081,92389.0,92373.0,0.10289284]
[1768317029725,0.09823081,92389.0,92374.0,0.010835]
[1768317030045,0.007,92389.0,92376.0,0.010835]
[1768317030539,0.005,92389.0,92373.0,0.10889284]
[1768317030725,0.005,92389.0,92380.0,0.010834]
[1768317030931,0.005,92389.0,92377.0,0.010834]
[1768317031449,0.005,92389.0,92376.0,0.012]
[1768317032240,0.005,92389.0,92377.0,0.012]
[1768317033237,0.09623081,92389.0,92377.0,0.012]
[1768317033539,0.09748,92396.0,92386.0,0.010833]
[1768317033735,0.09748,92396.0,92377.0,0.012]
[1768317033939,0.09748,92396.0,92377.0,0.008834]
[1768317034134,0.09748,92396.0,92384.0,0.010834]
[1768317034342,0.005,92389.0,92384.0,0.010834]
[1768317034532,0.09748,92396.0,92386.0,0.010833]
[1768317034844,0.09748,92396.0,92385.0,0.010833]
[1768317035034,0.10248,92396.0,92385.0,0.010833]
[1768317035429,0.10248,92396.0,92378.0,0.010834]
[1768317035845,0.005,92396.0,92386.0,0.006]
[1768317036642,0.0873648,92396.0,92386.0,0.006]
[1768317036948,0.0823648,92389.0,92373.0,0.10289284]
[1768317037331,0.0823648,92389.0,92380.0,0.010834]
[1768317037537,0.0823648,92389.0,92377.0,0.010834]
[1768317037933,0.0823648,92389.0,92378.0,0.007]
[1768317038140,0.010833,92388.0,92373.0,0.10289284]
[1768317038340,0.0823648,92381.0,92367.0,0.09748]
[1768317038643,0.0823648,92380.0,92367.0,0.010836]
[1768317038838,0.0823648,92380.0,92364.0,0.09748]
[1768317039036,0.17369273,92378.0,92364.0,0.09748]
[1768317039238,0.17369273,92378.0,92353.0,0.0758468]
[1768317039239,0.0823648,92373.0,92361.0,0.010836]
[1768317039439,0.0823648,92373.0,92356.0,0.09748]
[1768317039746,0.0823648,92373.0,92363.0,0.010836]
[1768317040048,0.14628277,92380.0,92367.0,0.010836]
[1768317040959,0.14628277,92380.0,92356.0,0.08110253]
[1768317041144,0.14628277,92380.0,92368.0,0.010835]
[1768317041344,0.15728277,92380.0,92368.0,0.010835]
[1768317041744,0.15728277,92380.0,92357.0,0.009673]
[1768317041942,0.0823648,92366.0,92333.0,0.10232573]
[1768317042242,0.0823648,92350.0,92333.0,0.00541518]
[1768317042549,0.0823648,92349.0,92333.0,0.00541518]
[1768317043048,0.18453073,92347.0,92333.0,0.00541518]
[1768317043351,0.0823648,92346.0,92333.0,0.00541518]
[1768317044856,0.0823648,92346.0,92333.0,0.01625518]
[1768317045045,0.1023648,92346.0,92325.0,0.0023829]
[1768317045353,0.0823648,92344.0,92336.0,0.010839]
[1768317045747,0.0823648,92344.0,92338.0,0.010839]
[1768317045952,0.02,92346.0,92338.0,0.010839]
[1768317046250,0.02,92346.0,92335.0,0.010839]
[1768317046648,9.92e-05,92348.0,92335.0,0.010839]
[1768317046839,0.013,92346.0,92327.0,0.01084]
[1768317047044,0.013,92346.0,92325.0,0.0023829]
[1768317047244,0.013,92346.0,92334.0,0.010839]
[1768317047444,0.09752,92347.0,92336.0,0.010839]
[1768317047644,0.011,92346.0,92336.0,0.010839]
[1768317047841,0.011,92346.0,92340.0,0.010839]
[1768317048143,0.0823648,92368.0,92348.0,0.010838]
[1768317048447,0.09752,92367.0,92348.0,0.010838]
[1768317048843,0.09752,92367.0,92350.0,0.010838]
[1768317049050,5.257e-05,92366.0,92343.0,0.09691055]
[1768317049248,5.257e-05,92366.0,92334.0,0.010839]
[1768317049249,0.08241737,92366.0,92344.0,0.09752]
[1768317049451,0.08241737,92366.0,92345.0,0.09752]
[1768317049644,0.08241737,92366.0,92345.0,0.095358]
[1768317050041,5.257e-05,92366.0,92345.0,0.08110253]
[1768317050247,5.257e-05,92366.0,92355.0,0.010837]
[1768317050441,0.09132793,92336.0,92297.0,0.00917353]
[1768317050652,0.09132793,92336.0,92295.0,0.00238367]
[1768317050653,0.0823648,92326.0,92301.0,0.17801308]
[1768317050850,0.15712277,92330.0,92302.0,0.17801308]
[1768317051050,0.01084,92330.0,92302.0,0.17801308]
[1768317051258,0.0823648,92333.0,92302.0,0.17801308]
[1768317051448,0.010841,92323.0,92300.0,0.01852]
[1768317051652,0.01084,92326.0,92300.0,0.02090281]
[1768317051852,0.010841,92324.0,92300.0,0.02090281]
[1768317052054,0.0823648,92329.0,92300.0,0.02090281]
[1768317053254,0.14628277,92320.0,92297.0,0.08110253]
[1768317053550,0.22864757,92320.0,92297.0,0.010844]
[1768317053757,0.22864757,92320.0,92301.0,0.00238281]
[1768317053957,0.22864757,92320.0,92300.0,0.00238281]
[1768317054344,0.22864757,92320.0,92300.0,0.00233281]
[1768317055556,0.22864757,92320.0,92301.0,0.010843]
[1768317055557,0.14628277,92320.0,92301.0,0.010843]
[1768317055753,0.09752,92323.0,92304.0,0.010843]
[1768317056051,0.0823648,92328.0,92306.0,0.010843]
[1768317056257,0.1798848,92328.0,92303.0,0.09691055]
[1768317056850,0.1798848,92328.0,92304.0,0.010843]
[1768317057046,0.1798848,92328.0,92300.0,0.00233281]
[1768317057047,0.0823648,92328.0,92305.0,0.010843]
[1768317057250,0.010841,92323.0,92300.0,0.00233281]
[1768317057451,0.0823648,92320.0,92300.0,0.00228281]
[1768317057652,0.22864757,92320.0,92300.0,0.00228281]
[1768317057858,0.0823648,92319.0,92300.0,0.00228281]
[1768317058059,0.0823648,92319.0,92300.0,0.20228281]
[1768317059156,0.14628277,92310.0,92295.0,0.09990367]
[1768317059356,0.0823648,92314.0,92295.0,0.09990367]
[1768317059557,0.14628277,92310.0,92295.0,0.09990367]
[1768317059958,0.14628277,92310.0,92295.0,0.11074767]
[1768317060358,0.0823648,92314.0,92295.0,0.09990367]
[1768317060554,0.14628277,92310.0,92295.0,0.09990367]
[1768317060951,0.09757257,92318.0,92300.0,0.010843]
[1768317061155,0.09757257,92318.0,92295.0,0.09990367]
[1768317061561,0.09757257,92318.0,92298.0,0.010844]
[1768317061763,5.257e-05,92318.0,92295.0,0.09990367]
[1768317062265,0.0823648,92331.0,92302.0,0.08110253]
[1768317062468,0.09756,92330.0,92302.0,0.08110253]
[1768317062669,0.09756,92330.0,92309.0,0.010842]
[1768317062865,0.09756,92330.0,92310.0,0.010842]
[1768317063167,0.0823648,92331.0,92313.0,0.010842]
[1768317063467,0.00541518,92333.0,92317.0,0.010841]
[1768317063665,0.00541518,92333.0,92319.0,0.010841]
[1768317063971,0.00541518,92333.0,92310.0,0.08110253]
[1768317064353,0.00541518,92333.0,92306.0,0.09756]
[1768317064354,0.00541518,92333.0,92313.0,0.10775255]
[1768317064959,0.00541518,92333.0,92313.0,0.09691055]
[1768317065469,0.00541518,92333.0,92311.0,0.08110253]
[1768317066669,0.00541518,92333.0,92312.0,0.010842]
[1768317067270,0.01625518,92333.0,92311.0,0.08110253]
[1768317067472,0.00541518,92333.0,92312.0,0.010842]
[1768317067771,0.00541518,92333.0,92316.0,0.09560635]
[1768317067969,0.00541518,92333.0,92317.0,0.09756]
[1768317068371,0.01625518,92333.0,92317.0,0.09756]
[1768317068571,0.00541518,92333.0,92317.0,0.09756]
[1768317068873,0.00541518,92333.0,92317.0,0.108401]
[1768317069374,0.00541518,92333.0,92317.0,0.09756]
[1768317069767,0.00541518,92333.0,92318.0,0.010841]
[1768317070072,0.00541518,92333.0,92317.0,0.09756]
[1768317070073,0.010838,92344.0,92323.0,0.09560635]
[1768317070265,0.05150183,92347.0,92323.0,0.09560635]
[1768317070464,0.010839,92341.0,92323.0,0.09560635]
[1768317070670,0.14686607,92346.0,92317.0,0.09756]
[1768317070875,0.05150183,92339.0,92317.0,0.108401]
[1768317071175,0.05150183,92336.0,92319.0,0.010841]
[1768317071369,0.05150183,92336.0,92322.0,0.010841]
[1768317071567,0.05150183,92332.0,92309.0,0.0766]
[1768317071775,0.05150183,92348.0,92327.0,0.01084]
[1768317071974,0.05150183,92348.0,92326.0,0.01084]
[1768317072268,0.010838,92344.0,92320.0,0.09560635]
[1768317072475,0.010838,92344.0,92321.0,0.19316635]
[1768317072782,0.06233883,92354.0,92336.0,0.010839]
[1768317072970,0.06233883,92354.0,92325.0,0.01084]
[1768317072971,0.010837,92353.0,92333.0,0.01084]
[1768317073275,0.05150183,92354.0,92332.0,0.09756]
[1768317073276,0.010838,92349.0,92332.0,0.09756]
[1768317073474,0.010838,92348.0,92332.0,0.09756]
[1768317073670,0.05150183,92351.0,92332.0,0.09756]
[1768317073866,0.05150183,92351.0,92333.0,0.01084]
[1768317074171,0.05150183,92351.0,92332.0,0.09756]
[1768317074780,0.010839,92342.0,92332.0,0.09756]
[1768317074970,0.05150183,92342.0,92316.0,0.09560635]
[1768317075172,0.01084,92334.0,92313.0,0.09756]
[1768317075373,0.09536424,92334.0,92313.0,0.09756]
[1768317075562,0.03944432,92328.0,92313.0,0.09756]
[1768317075878,0.01084,92326.0,92313.0,0.09756]
[1768317076078,0.03944432,92325.0,92313.0,0.09756]
[1768317076375,0.03944432,92323.0,92304.0,0.010843]
[1768317076680,0.03944432,92319.0,92299.0,0.010844]
[1768317076878,0.03944432,92319.0,92295.0,0.09994367]
[1768317076879,0.03944432,92319.0,92304.0,0.010843]
[1768317077263,0.03944432,92319.0,92306.0,0.010843]
[1768317077667,0.03944432,92319.0,92303.0,0.010843]
[1768317077968,0.03944432,92319.0,92296.0,0.09068]
[1768317078168,0.03944432,92319.0,92303.0,0.010843]
[1768317078881,0.03944432,92319.0,92305.0,0.010843]
[1768317079182,0.03944432,92319.0,92313.0,0.00541636]
[1768317081482,0.03944432,92319.0,92300.0,0.010843]
[1768317081867,0.03944432,92319.0,92295.0,0.09994367]
[1768317082070,0.03944432,92319.0,92303.0,0.010843]
[1768317082481,0.03944432,92319.0,92305.0,0.010843]
[1768317082678,0.03944432,92319.0,92318.0,0.010841]
[1768317082679,3.2e-07,92319.0,92318.0,0.010841]
[1768317082872,0.09756,92331.0,92309.0,0.098837]
[1768317083186,0.010838,92345.0,92320.0,0.010841]
[1768317083187,0.09756,92337.0,92320.0,0.010841]
[1768317083774,0.09756,92337.0,92330.0,0.01084]
[1768317083974,0.09756,92337.0,92332.0,0.01084]
[1768317084172,0.010838,92351.0,92332.0,0.01084]
[1768317084382,0.09756,92350.0,92332.0,0.01084]
[1768317084681,0.09941283,92353.0,92314.0,0.010842]
[1768317084682,0.09756,92349.0,92323.0,0.010841]
[1768317084868,0.09756,92349.0,92334.0,0.010839]
[1768317085075,0.09756,92349.0,92324.0,0.010841]
[1768317085377,0.09756,92349.0,92334.0,0.010839]
[1768317085576,0.09756,92349.0,92324.0,0.010841]
[1768317085780,0.09756,92349.0,92335.0,0.010839]
[1768317086084,0.03944432,92348.0,92332.0,0.01084]
[1768317086285,0.03944432,92348.0,92322.0,0.09756]
[1768317086586,0.03944432,92348.0,92333.0,0.01084]
[1768317087573,0.03944432,92348.0,92322.0,0.196397]
[1768317087876,0.03944432,92348.0,92332.0,0.01084]
[1768317088377,0.03944432,92348.0,92323.0,0.010841]
[1768317088582,0.09756,92356.0,92343.0,0.010838]
[1768317088880,0.09756,92359.0,92343.0,0.010838]
[1768317089383,0.09756,92367.0,92346.0,0.010838]
[1768317089684,0.09756,92376.0,92358.0,0.010837]
[1768317090186,0.09756,92376.0,92365.0,0.010836]
[1768317090584,0.03944432,92384.0,92363.0,0.010836]
[1768317090775,0.03944432,92382.0,92362.0,0.010836]
[1768317090990,0.108393,92386.0,92364.0,0.010836]
[1768317091269,0.14783732,92386.0,92364.0,0.010836]
[1768317091477,0.05027832,92384.0,92361.0,0.010836]
[1768317091675,0.03944432,92381.0,92361.0,0.010836]
[1768317091982,0.010834,92380.0,92358.0,0.05164626]
[1768317092287,0.03944432,92373.0,92357.0,0.010837]
[1768317093782,0.13885715,92381.0,92366.0,0.010836]
[1768317093988,0.09756,92386.0,92366.0,0.010836]
[1768317094480,0.03944432,92379.0,92360.0,0.010836]
[1768317094687,0.13885715,92379.0,92360.0,0.010836]
[1768317094983,0.02414422,92370.0,92356.0,0.108397]
[1768317095188,0.02414422,92366.0,92344.0,0.010838]
[1768317095371,0.09752,92375.0,92321.0,0.010841]
[1768317095372,0.03498022,92363.0,92339.0,0.010839]
[1768317095577,0.010837,92353.0,92337.0,0.09752]
[1768317095783,0.02414422,92356.0,92336.0,0.09752]
[1768317096181,0.09752,92363.0,92325.0,0.02382441]
[1768317096182,0.096784,92352.0,92325.0,0.02382441]
[1768317096489,0.02414422,92351.0,92335.0,0.010839]
[1768317097683,0.02414422,92351.0,92337.0,0.010839]
[1768317098077,0.02414422,92351.0,92334.0,0.010839]
[1768317098288,0.02414422,92351.0,92326.0,0.09752]
[1768317098786,0.02414422,92351.0,92337.0,0.010839]
[1768317099389,0.02414422,92359.0,92339.0,0.010839]
[1768317099582,0.02414422,92359.0,92341.0,0.010839]
[1768317099785,0.09752,92363.0,92347.0,0.010838]
[1768317100284,0.096784,92374.0,92349.0,0.02382441]
[1768317100484,0.09752,92374.0,92360.0,0.010836]
[1768317100690,0.09752,92374.0,92346.0,0.010838]
[1768317100691,0.096784,92381.0,92364.0,0.010836]
[1768317100987,0.09752,92388.0,92363.0,0.02382441]
[1768317101190,0.09752,92388.0,92373.0,0.010835]
[1768317101489,0.09752,92388.0,92375.0,0.010835]
[1768317101694,0.09752,92388.0,92373.0,0.010835]
[1768317101992,0.09752,92388.0,92375.0,0.010835]
[1768317102590,0.02955589,92393.0,92380.0,0.010834]
[1768317102898,0.00541167,92393.0,92372.0,0.010835]
[1768317103080,0.00541167,92393.0,92370.0,0.02382441]
[1768317104090,0.00541167,92393.0,92378.0,0.010834]
[1768317104284,0.00541167,92393.0,92384.0,0.010834]
[1768317105686,0.00541167,92393.0,92373.0,0.03465941]
[1768317105885,6.7e-07,92393.0,92390.0,0.03465741]
[1768317106188,0.09752,92413.0,92400.0,0.010832]
[1768317106389,0.09752,92413.0,92390.0,0.02382441]
[1768317106688,0.09752,92413.0,92392.0,0.010833]
[1768317106884,0.09752,92413.0,92396.0,0.010832]
[1768317107283,0.09752,92413.0,92399.0,0.010832]
[1768317107480,0.096784,92431.0,92401.0,0.02382441]
[1768317107690,0.02078306,92434.0,92410.0,0.01083]
[1768317107893,0.02078306,92434.0,92410.0,0.09752]
[1768317108282,0.02078306,92434.0,92410.0,0.12134441]
[1768317108786,0.02078306,92434.0,92411.0,0.01083]
[1768317109495,0.096784,92438.0,92414.0,0.01083]
[1768317109792,0.010826,92451.0,92421.0,0.02382441]
[1768317109993,0.010826,92451.0,92422.0,0.02382441]
[1768317110388,0.010826,92448.0,92422.0,0.02382441]
[1768317111095,0.03497022,92448.0,92422.0,0.01482441]
[1768317111985,0.096784,92447.0,92421.0,0.09752]
[1768317112594,0.010826,92446.0,92421.0,0.09752]
[1768317113094,0.010827,92443.0,92421.0,0.09752]
[1768317113998,0.02414422,92441.0,92421.0,0.09752]
[1768317114199,0.02414422,92441.0,92421.0,0.08012]
[1768317114388,0.096784,92447.0,92422.0,0.010829]
[1768317114582,0.02414422,92449.0,92425.0,0.010829]
[1768317114796,0.02414422,92449.0,92423.0,0.02382441]
[1768317115498,0.010826,92448.0,92423.0,0.02382441]
[1768317115798,0.09752,92452.0,92421.0,0.08012]
[1768317115799,0.03497122,92445.0,92421.0,0.08012]
[1768317115996,0.02414422,92444.0,92421.0,0.08012]
[1768317116394,0.09752,92452.0,92418.0,0.09748]
[1768317116395,0.02414422,92438.0,92418.0,0.09748]
[1768317116595,0.09752,92452.0,92427.0,0.02382441]
[1768317116801,0.02414422,92450.0,92422.0,0.02382441]
[1768317117001,0.02414422,92450.0,92424.0,0.03465341]
[1768317117189,0.02414422,92450.0,92426.0,0.010829]
[1768317117687,0.03497022,92450.0,92424.0,0.02382441]
[1768317117884,0.02414422,92449.0,92425.0,0.010829]
[1768317118102,0.02414422,92449.0,92424.0,0.02382441]
[1768317118294,0.12092822,92442.0,92415.0,0.02382441]
[1768317118493,0.02414422,92440.0,92416.0,0.09748]
[1768317118691,0.010827,92439.0,92416.0,0.08848]
[1768317119203,0.010828,92437.0,92416.0,0.08848]
[1768317119701,0.02414422,92440.0,92416.0,0.08848]
[1768317120000,0.010827,92439.0,92416.0,0.08848]
[1768317120298,0.09748,92445.0,92416.0,0.08848]
[1768317120299,0.09748,92445.0,92418.0,0.02382441]
[1768317120493,0.09748,92445.0,92421.0,0.02382441]
[1768317120699,0.010827,92444.0,92421.0,0.02382441]
[1768317121085,0.09748,92445.0,92421.0,0.02382441]
[1768317121400,0.09748,92445.0,92425.0,0.010829]
[1768317121593,0.010827,92444.0,92421.0,0.02382441]
[1768317121795,0.09748,92445.0,92425.0,0.010829]
[1768317122002,0.09748,92445.0,92421.0,0.03465341]
[1768317122184,0.108307,92445.0,92421.0,0.03465341]
[1768317122388,0.09748,92445.0,92421.0,0.02382441]
[1768317122589,0.010827,92443.0,92421.0,0.02382441]
[1768317123196,0.09748,92445.0,92406.0,0.02382441]
[1768317123197,0.12092822,92437.0,92406.0,0.02382441]
[1768317123400,0.09748,92445.0,92398.0,0.09748]
[1768317123401,0.096784,92422.0,92398.0,0.09748]
[1768317123585,0.02414422,92417.0,92397.0,0.09748]
[1768317123784,0.096784,92412.0,92375.0,0.09465092]
[1768317123994,0.02414422,92410.0,92377.0,0.02382441]
[1768317124193,0.010831,92408.0,92380.0,0.02382441]
[1768317124396,0.02414422,92410.0,92383.0,0.010834]
[1768317124700,0.02414422,92410.0,92385.0,0.010833]
[1768317124900,0.02414422,92410.0,92393.0,0.010832]
[1768317125103,0.09744,92419.0,92395.0,0.010832]
[1768317125396,0.09748,92419.0,92394.0,0.00913792]
[1768317125696,0.09748,92419.0,92392.0,0.09748]
[1768317125697,0.01083,92414.0,92392.0,0.09748]
[1768317125897,0.00980371,92409.0,92391.0,0.09748]
[1768317126203,0.02063471,92409.0,92391.0,0.09748]
[1768317126406,0.00980371,92403.0,92385.0,0.09748]
[1768317126697,0.01083,92417.0,92388.0,0.00913792]
[1768317126898,0.10490533,92418.0,92392.0,0.010833]
[1768317127102,0.11573533,92418.0,92392.0,0.010833]
[1768317127292,0.11573533,92418.0,92391.0,0.00913792]
[1768317127493,0.00980371,92418.0,92391.0,0.00913792]
[1768317127694,0.00980371,92418.0,92394.0,0.01996992]
[1768317128004,0.09748,92419.0,92399.0,0.010832]
[1768317128192,0.09748,92419.0,92395.0,0.010832]
[1768317128394,0.00980371,92443.0,92399.0,0.0976523]
[1768317128595,0.010826,92447.0,92422.0,0.00913792]
[1768317128807,0.010826,92450.0,92423.0,0.09748]
[1768317129200,0.00980371,92449.0,92428.0,0.010828]
[1768317129501,0.09748,92457.0,92423.0,0.09748]
[1768317129502,0.10728371,92457.0,92423.0,0.09748]
[1768317130003,0.010825,92456.0,92430.0,0.010828]
[1768317130204,0.10728371,92457.0,92427.0,0.010829]
[1768317130407,0.00980371,92452.0,92423.0,0.09748]
[1768317130704,0.14635147,92450.0,92423.0,0.09748]
[1768317130907,0.00980371,92452.0,92423.0,0.09748]
[1768317131295,0.00980371,92452.0,92426.0,0.00913792]
[1768317131905,0.00980371,92452.0,92428.0,0.010828]
[1768317132105,0.02062971,92452.0,92426.0,0.00913792]
[1768317132409,0.02062971,92452.0,92427.0,0.010829]
[1768317132605,0.00980371,92451.0,92427.0,0.010829]
[1768317132803,0.00980371,92448.0,92424.0,0.010829]
[1768317133005,0.00980371,92448.0,92426.0,0.010829]
[1768317133406,0.00980371,92448.0,92417.0,0.06103066]
[1768317133407,0.00980371,92445.0,92427.0,0.09744]
[1768317133708,0.00980371,92439.0,92408.0,0.00913792]
[1768317134002,0.010828,92429.0,92409.0,0.09744]
[1768317134304,0.010829,92427.0,92409.0,0.09744]
[1768317134607,0.010828,92430.0,92409.0,0.09744]
[1768317134806,0.00980371,92432.0,92409.0,0.108271]
[1768317134999,0.00980371,92429.0,92404.0,0.010831]
[1768317135308,0.00980371,92428.0,92410.0,0.01083]
[1768317136498,0.00980371,92428.0,92405.0,0.094271]
[1768317137306,0.00980371,92428.0,92409.0,0.010831]
[1768317140110,0.00980371,92428.0,92406.0,0.010831]
[1768317140305,0.00964401,92426.0,92400.0,0.00913792]
[1768317140506,0.00964401,92426.0,92401.0,0.09744]
[1768317140811,0.00964401,92426.0,92410.0,0.010831]
[1768317141012,0.00964401,92426.0,92401.0,0.20317837]
[1768317141311,0.15599548,92411.0,92393.0,0.010833]
[1768317141508,0.00964401,92411.0,92390.0,0.108273]
[1768317141709,0.14635147,92410.0,92390.0,0.108273]
[1768317141910,0.00964401,92411.0,92394.0,0.010832]
[1768317142104,0.10708401,92419.0,92393.0,0.10573837]
[1768317142298,0.10708401,92419.0,92398.0,0.010832]
[1768317142499,0.00964401,92418.0,92398.0,0.010832]
[1768317143304,0.00964401,92418.0,92395.0,0.010832]
[1768317143613,0.00964401,92416.0,92390.0,0.09744]
[1768317144311,0.00964401,92416.0,92398.0,0.010832]
[1768317144717,0.00964401,92416.0,92395.0,0.010832]
[1768317145799,0.10827,92419.0,92392.0,0.10573837]
[1768317146006,0.00964401,92416.0,92395.0,0.010832]
[1768317146223,0.00964401,92416.0,92390.0,0.09744]
[1768317146514,0.00964401,92416.0,92397.0,0.010832]
[1768317146708,0.00964401,92416.0,92390.0,0.09744]
[1768317147011,0.09744,92419.0,92411.0,0.01083]
[1768317147212,0.09744,92419.0,92391.0,0.010833]
[1768317147213,0.09744,92419.0,92401.0,0.10573837]
[1768317147401,0.09744,92419.0,92400.0,0.010832]
[1768317147712,0.09744,92419.0,92394.0,0.09667142]
[1768317147713,0.09744,92419.0,92402.0,0.010831]
[1768317147909,0.00964401,92414.0,92385.0,0.00906695]
[1768317148114,0.00964401,92409.0,92386.0,0.09748]
[1768317148304,0.00964401,92408.0,92388.0,0.010833]
[1768317148900,0.00964401,92407.0,92388.0,0.010833]
[1768317149117,0.00964401,92407.0,92382.0,0.08748]
[1768317149415,0.00964401,92407.0,92399.0,0.010832]
[1768317149606,0.09748,92408.0,92396.0,0.010832]
[1768317150313,0.09748,92408.0,92387.0,0.00906695]
[1768317150513,0.09748,92408.0,92393.0,0.010833]
[1768317150906,0.09748,92408.0,92387.0,0.10573837]
[1768317151811,0.09748,92408.0,92382.0,0.08748]
[1768317152114,0.09748,92408.0,92383.0,0.09748]
[1768317152115,0.15599548,92400.0,92383.0,0.09748]
[1768317152415,0.00964401,92399.0,92383.0,0.09748]
[1768317152806,0.00964401,92407.0,92387.0,0.010833]
[1768317153010,0.09748,92408.0,92386.0,0.10573837]
[1768317153812,0.09748,92408.0,92390.0,0.010833]
[1768317154711,0.09748,92408.0,92391.0,0.010833]
[1768317155010,0.09748,92408.0,92386.0,0.10573837]
[1768317155209,0.00961061,92436.0,92408.0,0.09965832]
[1768317155516,0.02043961,92427.0,92406.0,0.010831]
[1768317155710,0.02043961,92427.0,92406.0,0.108311]
[1768317156110,0.02043961,92427.0,92406.0,0.09748]
[1768317156305,0.15596208,92420.0,92397.0,0.010832]
[1768317156512,0.16679208,92420.0,92399.0,0.010832]
[1768317157023,0.16679208,92420.0,92398.0,0.09748]
[1768317157024,0.01083,92418.0,92398.0,0.09748]
[1768317157517,0.01083,92418.0,92394.0,0.09965832]
[1768317157518,0.00961061,92407.0,92381.0,0.09046271]
[1768317157828,0.00961061,92407.0,92361.0,0.010836]
[1768317157829,0.010832,92397.0,92382.0,0.09748]
[1768317158018,0.00961061,92399.0,92381.0,0.09748]
[1768317158218,0.010833,92389.0,92370.0,0.00919561]
[1768317158421,0.15596208,92391.0,92368.0,0.09748]
[1768317158618,0.010833,92390.0,92368.0,0.108315]
[1768317158817,0.15596208,92391.0,92368.0,0.108315]
[1768317158818,0.00961061,92391.0,92368.0,0.108315]
[1768317159024,0.02044361,92389.0,92366.0,0.010836]
[1768317159220,0.00961061,92389.0,92368.0,0.010835]
[1768317160316,0.00420012,92389.0,92368.0,0.010835]
[1768317160824,0.00420012,92389.0,92361.0,0.10667561]
[1768317160825,0.00420012,92389.0,92370.0,0.010835]
[1768317161024,0.00420012,92389.0,92362.0,0.00919561]
[1768317161217,0.09267609,92395.0,92366.0,0.010836]
[1768317161425,0.09748,92403.0,92379.0,0.00919561]
[1768317161612,0.108311,92403.0,92381.0,0.010834]
[1768317161815,0.09748,92403.0,92381.0,0.010834]
[1768317162721,0.09748,92403.0,92379.0,0.00919561]
[1768317162924,0.09748,92410.0,92390.0,0.010833]
[1768317163122,0.24383147,92410.0,92390.0,0.010833]
[1768317163326,0.24383147,92410.0,92393.0,0.010833]
[1768317163524,0.09748,92410.0,92389.0,0.00919561]
[1768317164117,0.09748,92410.0,92393.0,0.010832]
[1768317164925,0.09748,92410.0,92389.0,0.00919561]
[1768317164926,0.09748,92410.0,92391.0,0.005665]
[1768317165123,0.09748,92417.0,92393.0,0.02002761]
[1768317165420,0.00961061,92428.0,92408.0,0.010831]
[1768317165626,0.09748,92427.0,92408.0,0.010831]
[1768317166015,0.00961061,92436.0,92409.0,0.00919561]
[1768317166221,0.09748,92435.0,92417.0,0.01083]
[1768317166420,0.09748,92435.0,92421.0,0.010829]
[1768317166624,0.09748,92435.0,92426.0,0.010829]
[1768317167016,0.09748,92435.0,92415.0,0.00919561]
[1768317167017,0.09748,92435.0,92423.0,0.010829]
[1768317167217,0.09748,92435.0,92415.0,0.00919561]
[1768317167412,0.09748,92443.0,92426.0,0.010829]
[1768317168017,0.09748,92443.0,92415.0,0.09965832]
[1768317168215,0.09748,92443.0,92414.0,0.01083]
[1768317168216,0.09748,92443.0,92419.0,0.00919561]
[1768317168416,3.2e-07,92433.0,92419.0,0.00919561]
[1768317168627,3.2e-07,92433.0,92418.0,0.09046271]
[1768317168628,3.2e-07,92433.0,92431.0,0.02002361]
[1768317168827,0.10709061,92452.0,92436.0,0.010827]
[1768317169124,0.09748,92452.0,92439.0,0.010827]
[1768317169332,0.09748,92452.0,92431.0,0.00919561]
[1768317169333,0.09748,92461.0,92443.0,0.010827]
[1768317169718,0.09748,92461.0,92433.0,0.00919561]
[1768317169929,0.09267609,92459.0,92426.0,0.00919561]
[1768317170128,0.09267609,92459.0,92443.0,0.010827]
[1768317170428,0.09267609,92459.0,92440.0,0.010827]
[1768317172320,1.5e-07,92453.0,92451.0,0.010826]
[1768317172529,0.00961061,92480.0,92453.0,0.00919561]
[1768317172834,0.00961061,92480.0,92460.0,0.010825]
[1768317173221,0.00961061,92480.0,92463.0,0.010824]
[1768317173419,0.00961061,92488.0,92470.0,0.010824]
[1768317173735,0.38992,92512.0,92470.0,0.010824]
[1768317173736,0.09748,92494.0,92471.0,0.010823]
[1768317173920,0.00961061,92496.0,92471.0,0.010823]
[1768317174418,0.00961061,92496.0,92470.0,0.09748]
[1768317174630,0.00961061,92496.0,92473.0,0.010823]
[1768317175026,0.00961061,92496.0,92470.0,0.09748]
[1768317175027,0.00961061,92504.0,92481.0,0.010822]
[1768317175226,0.09267609,92511.0,92483.0,0.010822]
[1768317175929,0.00961061,92510.0,92483.0,0.010822]
[1768317176134,0.00540465,92513.0,92487.0,0.00919561]
[1768317176330,0.14635147,92510.0,92487.0,0.00919561]
[1768317176638,0.00961061,92508.0,92479.0,0.00919561]
[1768317176824,0.00961061,92506.0,92480.0,0.09744]
[1768317177730,0.02042961,92506.0,92480.0,0.09244]
[1768317178130,0.02042961,92506.0,92475.0,0.00919561]
[1768317178332,0.02042961,92506.0,92476.0,0.108263]
[1768317179028,0.00961061,92506.0,92481.0,0.00919561]
[1768317179237,0.00540465,92513.0,92484.0,0.00919561]
[1768317179436,0.00961061,92534.0,92501.0,0.02001561]
[1768317179625,0.00961061,92534.0,92502.0,0.09744]
[1768317179831,0.00961061,92534.0,92503.0,0.00919561]
[1768317180336,0.00961061,92534.0,92504.0,0.01082]
[1768317180533,0.00961061,92529.0,92505.0,0.09744]
[1768317180732,0.010817,92527.0,92505.0,0.09744]
[1768317180933,0.00961061,92526.0,92505.0,0.09744]
[1768317181332,0.00961061,92518.0,92488.0,0.02001661]
[1768317181537,0.00961061,92518.0,92489.0,0.0974]
[1768317181840,0.00961061,92518.0,92490.0,0.10659561]
[1768317182041,0.00961061,92518.0,92498.0,0.01082]
[1768317182245,0.00961061,92518.0,92494.0,0.010821]
[1768317182540,0.00961061,92527.0,92497.0,0.01082]
[1768317182842,0.00961061,92527.0,92500.0,0.00919561]
[1768317183034,0.02042761,92527.0,92501.0,0.0974]
[1768317184139,0.00961061,92527.0,92509.0,0.010819]
[1768317184342,0.09744,92532.0,92510.0,0.00919561]
[1768317184641,0.00961061,92524.0,92503.0,0.00919561]